Workbook

Sheet Меню младшие 1-4 кл Весна
B4: ПРИМЕРНОЕ ДВУХНЕДЕЛЬНОЕ МЕНЮ ДЛЯ ОБУЧАЮЩИХСЯ В ОБЩЕОБРАЗОВАТЕЛЬНЫХ ОРГАНИЗАЦИЯХ С 1 по 4 КЛАССЫ
A6: № рецептуры | B6: Наименование блюд | C6: Выход,г | D6: Белки, г | E6: Жиры, г | F6: Углеводы, г | G6: Калорийность, ккал | H6: Витамин B1, мг | I6: Витамин С, мг | J6: Витамин А, мг | K6: Витамин Е, мг | L6: Ca, мг | M6: P, мг | N6: Mg, мг | O6: Fe, мг
B7: 1-ая неделя
B8: 1 день
A9: Хим.состав и калорийность российских продуктов питания табл 9 стр 184 , 2012 Дели + | B9: Плоды и ягоды свежие (яблоки) | C9: 100 | D9: 0.40 | E9: 0.40 | F9: 9.80 | G9: 47.00 | H9: 0.03 | I9: 10.00 | K9: 0.20 | L9: 16.00 | M9: 11.00 | N9: 9.00 | O9: 2.20
A10: № 279 Сбор.рец. На прод-ию для обуч. Во всех образ.учреж-Дели 2017 | B10: Тефтели из говядины (2 вариант)в сметанно - томатном соусе | C10: 90/30 | D10: 8.40 | E10: 10.20 | F10: 11.00 | G10: 176.96 | H10: 0.06 | I10: 0.01 | J10: 34.29 | K10: 0.54 | L10: 22.32 | M10: 111.49 | N10: 20.34 | O10: 0.84
A11: № 303 Сбор.рец. На прод-ию для обуч. Во всех образ.учреж-Дели 2017 | B11: Каша вязкая гречневая | C11: 150 | D11: 4.58 | E11: 5.01 | F11: 20.52 | G11: 145.50 | H11: 0.12 | I11: 0.00 | J11: 0.00 | K11: 0.34 | L11: 8.45 | M11: 108.87 | N11: 72.03 | O11: 2.42
A12: № 379 Сбор.рец. На прод-ию для обуч. Во всех образ.учреж-Дели 2017 | B12: Кофейный напиток с молоком | C12: 200 | D12: 3.166 | E12: 2.678 | F12: 15.946 | G12: 101 | H12: 0.044 | I12: 1.300 | J12: 20.000 | K12: 0.000 | L12: 125.780 | M12: 90.000 | N12: 14.000 | O12: 0.134
A13: Хим.состав и калорийность российских продуктов питания табл 6 стр 134 , 2012 Дели + | B13: Хлеб пшеничный | C13: 30 | D13: 2.280 | E13: 0.240 | F13: 14.760 | G13: 71 | H13: 0.033 | I13: 0 | J13: 0 | K13: 0.330 | L13: 6.000 | M13: 19.500 | N13: 4.200 | O13: 0.330
A14: Хим.состав и калорийность российских продуктов питания,табл 6, стр 144 , 2012 Дели + | B14: Хлеб ржаной | C14: 20 | D14: 1.32 | E14: 0.24 | F14: 7.92 | G14: 39.60 | H14: 0.03 | I14: 0.00 | J14: 0.00 | K14: 0.28 | L14: 5.80 | M14: 30.00 | N14: 9.40 | O14: 0.78
B15: Итого: | C15: 620 | D15: =SUM(D9:D14) -> 20.15 | E15: =SUM(E9:E14) -> 18.77 | F15: 79.95 | G15: 580.16 | H15: 0.32 | I15: 11.31 | J15: 54.29 | K15: 1.70 | L15: 184.34 | M15: 370.86 | N15: 128.97 | O15: 6.71
B17: 2 день
A18: ТТК | B18: Салат из фасоли и кукурузы консервированной с огурцами солеными | C18: 60 | D18: 6.55 | E18: 7.03 | F18: 16.26 | G18: 160.10 | H18: 0.27 | I18: 0.63 | J18: 0.00 | K18: 2.08 | L18: 68.85 | M18: 204.79 | N18: 72.12 | O18: 2.96
A19: № 289 Сбор.рец. На прод-ию для обуч. Во всех образ.учреж-Дели 2015 | B19: Рагу из птицы | C19: 50/150 | D19: 9.80 | E19: 12.66 | F19: 29.85 | G19: 283.50 | H19: 0.20 | I19: 8.76 | J19: 0.18 | K19: 2.10 | L19: 57.66 | M19: 201.91 | N19: 26.39 | O19: 0.11
A20: № 377 Сбор.рец. На прод-ию для обуч. Во всех образ.учреж-Дели 2017 | B20: Чай с сахаром, с лимоном | C20: 200/15/7 | D20: 0.13 | E20: 0.02 | F20: 15.20 | G20: 62.00 | I20: 2.83 | K20: 0.01 | L20: 14.20 | M20: 4.40 | N20: 2.40 | O20: 0.36
A21: Хим.состав и калорийность российских продуктов питания табл 6 стр 134 , 2012 Дели + | B21: Хлеб пшеничный | C21: 30 | D21: 2.280 | E21: 0.240 | F21: 14.760 | G21: 71 | H21: 0.033 | I21: 0 | J21: 0 | K21: 0.330 | L21: 6.000 | M21: 19.500 | N21: 4.200 | O21: 0.330
A22: Хим.состав и калорийность российских продуктов питания,табл 6, стр 144 , 2012 Дели + | B22: Хлеб ржаной | C22: 20 | D22: 1.32 | E22: 0.24 | F22: 7.92 | G22: 39.60 | H22: 0.03 | I22: 0.00 | J22: 0.00 | K22: 0.28 | L22: 5.80 | M22: 30.00 | N22: 9.40 | O22: 0.78
B23: Итого: | C23: 532 | D23: =SUM(D18:D22) -> 20.08 | E23: =SUM(E18:E22) -> 20.19 | F23: 83.99 | G23: 615.70 | H23: 0.54 | I23: 12.22 | J23: 0.18 | K23: 4.80 | L23: 152.51 | M23: 460.60 | N23: 114.51 | O23: 4.54
B25: 3 день
A26: № 268 Сбор.рец. На прод-ию для обуч. Во всех образ.учреж-Дели 2017 | B26: Котлеты из говядины | C26: 90 | D26: 11.18 | E26: 12.76 | F26: 10.78 | G26: 206.40 | H26: 0.05 | K26: 3.10 | L26: 9.38 | M26: 150.08 | N26: 27.54 | O26: 2.41
A27: № 304 Сбор.рец. На прод-ию для обуч. Во всех образ.учреж-Дели 2017 | B27: Рис отварной с кукурузой к/с (доп.гарнир) | C27: 150/30 | D27: 4.51 | E27: 7.22 | F27: 39.09 | G27: 239.49 | H27: 0.06 | I27: 2.79 | J27: 0.00 | K27: 1.13 | L27: 6.97 | M27: 78.28 | N27: 22.20 | O27: 0.73
A28: № 376 Сбор.рец. На прод-ию для обуч. Во всех образ.учреж-Дели 2017 | B28: Чай с сахаром | C28: 200/15 | D28: 0.07 | E28: 0.02 | F28: 15.00 | G28: 60.00 | I28: 0.03 | L28: 11.10 | M28: 2.80 | N28: 1.40 | O28: 0.28
A29: Хим.состав и калорийность российских продуктов питания табл 6 стр 134 , 2012 Дели + | B29: Хлеб пшеничный | C29: 30 | D29: 2.280 | E29: 0.240 | F29: 14.760 | G29: 71 | H29: 0.033 | I29: 0 | J29: 0 | K29: 0.330 | L29: 6.000 | M29: 19.500 | N29: 4.200 | O29: 0.330
A30: Хим.состав и калорийность российских продуктов питания,табл 6, стр 144 , 2012 Дели + | B30: Хлеб ржаной | C30: 20 | D30: 1.32 | E30: 0.24 | F30: 7.92 | G30: 39.60 | H30: 0.03 | I30: 0.00 | J30: 0.00 | K30: 0.28 | L30: 5.80 | M30: 30.00 | N30: 9.40 | O30: 0.78
B31: Итого: | C31: 535 | D31: =SUM(D26:D30) -> 19.36 | E31: =SUM(E26:E30) -> 20.48 | F31: 87.55 | G31: 615.99 | H31: 0.18 | I31: 2.82 | J31: 0.00 | K31: 4.84 | L31: 39.24 | M31: 280.66 | N31: 64.74 | O31: 4.53
B36: 4 день
A38: № 295 Сбор.рец. На прод-ию для обуч. Во всех образ.учреж-Дели 2017 | B38: Котлеты рубленные из бройлер - цыплят | C38: 90 | D38: 12.70 | E38: 14.94 | F38: 13.80 | G38: 249.80 | H38: 0.09 | I38: 0.94 | J38: 46.26 | K38: 2.51 | L38: 61.51 | M38: 95.54 | N38: 21.56 | O38: 1.26
A39: № 312 Сбор.рец. На прод-ию для обуч. Во всех образ.учреж-Дели -2017 | B39: Пюре картофельное с огурцами солеными (доп.гарнир) | C39: 150/30 | D39: 3.30 | E39: 4.83 | F39: 20.95 | G39: 140.25 | H39: 0.15 | I39: 19.21 | J39: 0.00 | K39: 0.21 | L39: 43.88 | M39: 93.80 | N39: 31.95 | O39: 1.19
A40: № 342 Сбор.рец. На прод-ию для обуч. Во всех образ.учреж-Дели 2017 | B40: Компот из свежих яблок (75 С) | C40: 200 | D40: 0.16 | E40: 0.16 | F40: 27.88 | G40: 114.60 | H40: 0.01 | I40: 0.90 | J40: 0.00 | K40: 0.08 | L40: 14.18 | M40: 4.40 | N40: 5.14 | O40: 0.95
A41: Хим.состав и калорийность российских продуктов питания табл 6 стр 134 , 2012 Дели + | B41: Хлеб пшеничный | C41: 30 | D41: 2.280 | E41: 0.240 | F41: 14.760 | G41: 71 | H41: 0.033 | I41: 0 | J41: 0 | K41: 0.330 | L41: 6.000 | M41: 19.500 | N41: 4.200 | O41: 0.330
A42: Хим.состав и калорийность российских продуктов питания,табл 6, стр 144 , 2012 Дели + | B42: Хлеб ржаной | C42: 20 | D42: 1.32 | E42: 0.24 | F42: 7.92 | G42: 39.60 | H42: 0.03 | I42: 0.00 | J42: 0.00 | K42: 0.28 | L42: 5.80 | M42: 30.00 | N42: 9.40 | O42: 0.78
B43: Итого: | C43: 520 | D43: =SUM(D38:D42) -> 19.76 | E43: =SUM(E38:E42) -> 20.41 | F43: 85.31 | G43: 614.75 | H43: 0.31 | I43: 21.05 | J43: 46.26 | K43: 3.41 | L43: 131.37 | M43: 243.24 | N43: 72.25 | O43: 4.51
B45: 5 день
A46: № 47 Сбор.рец. На прод-ию для обуч. Во всех образ.учреж-Дели 2017 | B46: Салат из квашеной капусты | C46: 60 | D46: 1.02 | E46: 3.00 | F46: 15.38 | G46: 52.68 | H46: 0.01 | I46: 10.69 | J46: 0.00 | K46: 9.19 | L46: 27.21 | M46: 22.29 | N46: 9.37 | O46: 0.39
A47: № 243 Сбор.рец. На прод-ию для обуч. Во всех образ.учреж-Дели 2017 | B47: Сосиски отварные | C47: 100 | D47: 10.010 | E47: 11.850 | F47: 0.370 | G47: 192 | H47: 0.180 | I47: 0 | J47: 0 | K47: 0.390 | L47: 34.600 | M47: 159.000 | N47: 20.000 | O47: 1.780
A48: № 203 Сбор.рец. На прод-ию для обуч. Во всех образ.учреж-Дели 2017 | B48: Макаронные изделия отварные | C48: 150 | D48: 5.51 | E48: 4.52 | F48: 26.45 | G48: 168.45 | H48: 0.06 | I48: 0.00 | J48: 0.00 | K48: 0.97 | L48: 4.86 | M48: 37.17 | N48: 21.12 | O48: 1.11
A49: № 376 Сбор.рец. На прод-ию для обуч. Во всех образ.учреж-Дели 2017 | B49: Чай с сахаром | C49: 200/15 | D49: 0.07 | E49: 0.02 | F49: 15.00 | G49: 60.00 | I49: 0.03 | L49: 11.10 | M49: 2.80 | N49: 1.40 | O49: 0.28
A50: Хим.состав и калорийность российских продуктов питания табл 6 стр 134 , 2012 Дели + | B50: Хлеб пшеничный | C50: 30 | D50: 2.280 | E50: 0.240 | F50: 14.760 | G50: 71 | H50: 0.033 | I50: 0 | J50: 0 | K50: 0.330 | L50: 6.000 | M50: 19.500 | N50: 4.200 | O50: 0.330
A51: Хим.состав и калорийность российских продуктов питания,табл 6, стр 144 , 2012 Дели + | B51: Хлеб ржаной | C51: 20 | D51: 1.32 | E51: 0.24 | F51: 7.92 | G51: 39.60 | H51: 0.03 | I51: 0.00 | J51: 0.00 | K51: 0.28 | L51: 5.80 | M51: 30.00 | N51: 9.40 | O51: 0.78
B52: Итого: | C52: 575 | D52: =SUM(D46:D51) -> 20.21 | E52: =SUM(E46:E51) -> 19.87 | F52: 79.88 | G52: 583.23 | H52: 0.32 | I52: 10.72 | J52: 0.00 | K52: 11.16 | L52: 89.57 | M52: 270.76 | N52: 65.49 | O52: 4.67
B55: 6 день
A56: Хим.состав и калорийность российских продуктов питания табл 9 стр 184 , 2012 Дели + | B56: Плоды и ягоды свежие (яблоки) | C56: 100 | D56: 0.40 | E56: 0.40 | F56: 9.80 | G56: 47.00 | H56: 0.03 | I56: 10.00 | K56: 0.20 | L56: 16.00 | M56: 11.00 | N56: 9.00 | O56: 2.20
A57: № 15 Сбор.рец. На прод-ию для обуч. Во всех образ.учреж-Дели 2017 | B57: Сыр порционно | C57: 10 | D57: 2.63 | E57: 2.63 | F57: 0.00 | G57: 34.33 | H57: 0.00 | I57: 0.07 | J57: 21.00 | K57: 0.04 | L57: 100.00 | M57: 60.00 | N57: 5.50 | O57: 0.07
A58: № 223 Сбор.рец. На прод-ию для обуч. Во всех образ.учреж-Дели 2017 | B58: Запеканка творожная с молоком сгущенным | C58: 130/20 | D58: 14.20 | E58: 17.060 | F58: 39.998 | G58: 388 | H58: 0.093 | I58: 0.538 | J58: 118.300 | K58: 0.754 | L58: 254.526 | M58: 318.306 | N58: 37.454 | O58: 1.106
A59: № 376 Сбор.рец. На прод-ию для обуч. Во всех образ.учреж-Дели 2017 | B59: Чай с сахаром, с курагой | C59: 200/15/7 | D59: 0.58 | E59: 0.02 | F59: 18.57 | G59: 76.24 | I59: 0.31 | K59: 0.39 | L59: 22.76 | M59: 13.44 | N59: 9.03 | O59: 0.50
A60: Хим.состав и калорийность российских продуктов питания табл 6 стр 134 , 2012 Дели + | B60: Хлеб пшеничный | C60: 30 | D60: 2.28 | E60: 0.24 | F60: 14.76 | G60: 70.50 | H60: 0.03 | I60: 0.00 | J60: 0.00 | K60: 0.33 | L60: 6.00 | M60: 19.50 | N60: 4.20 | O60: 0.33
B61: Итого: | C61: 512 | D61: =SUM(D56:D60) -> 20.09 | E61: =SUM(E56:E60) -> 20.35 | F61: 83.13 | G61: 616.17 | H61: 0.16 | I61: 10.92 | J61: 139.30 | K61: 1.71 | L61: 399.29 | M61: 422.25 | N61: 65.18 | O61: 4.21
A72: № рецептуры | B72: Наименование блюд | C72: Выход,г | D72: Белки, г | E72: Жиры, г | F72: Углеводы, г | G72: Калорийность, ккал | H72: Витамин B1, мг | I72: Витамин С, мг | J72: Витамин А, мг | K72: Витамин Е, мг | L72: Ca, мг | M72: P, мг | N72: Mg, мг | O72: Fe, мг
B73: 2-ая неделя
B74: 1 день
A75: № 280 Сбор.рец. На прод-ию для обуч. Во всех образ.учреж-Дели -2017 | B75: Фрикадельки в сметанно-томатном соусе | C75: 55/50 | D75: 7.580 | E75: 12.410 | F75: 10.310 | G75: 180 | H75: 0.040 | I75: 0.270 | J75: 16.310 | K75: 2.67 | L75: 24.450 | M75: 79.590 | N75: 14.190 | O75: 5.290
A76: № 171 Сбор.рец. На прод-ию для обуч. Во всех образ.учреж-Дели 2017 | B76: Каша гречневая рассыпчатая с маслом сливочным | C76: 150/5 | D76: 8.810 | E76: 5.920 | F76: 39.780 | G76: 247 | H76: 0.210 | J76: 20.000 | K76: 0.450 | L76: 25.190 | M76: 208.850 | N76: 140.520 | O76: 4.720
A77: № 376 Сбор.рец. На прод-ию для обуч. Во всех образ.учреж-Дели 2017 | B77: Чай с сахаром | C77: 200/15 | D77: 0.07 | E77: 0.02 | F77: 15.000 | G77: 60 | I77: 0.03 | L77: 11.100 | M77: 2.8 | N77: 1.4 | O77: 0.280
A78: Хим.состав и калорийность российских продуктов питания табл 6 стр 134 , 2012 Дели + | B78: Хлеб пшеничный | C78: 30 | D78: 2.280 | E78: 0.240 | F78: 14.760 | G78: 71 | H78: 0.033 | I78: 0 | J78: 0 | K78: 0.330 | L78: 6.000 | M78: 19.500 | N78: 4.200 | O78: 0.330
A79: Хим.состав и калорийность российских продуктов питания,табл 6, стр 144 , 2012 Дели + | B79: Хлеб ржаной | C79: 20 | D79: 1.320 | E79: 0.240 | F79: 7.920 | G79: 40 | H79: 0.034 | I79: 0 | J79: 0 | K79: 0.280 | L79: 5.800 | M79: 30.000 | N79: 9.400 | O79: 0.780
B80: Итого: | C80: 525 | D80: =SUM(D75:D79) -> 20.06 | E80: =SUM(E75:E79) -> 18.83 | F80: 87.77 | G80: 597.10 | H80: 0.32 | I80: 0.30 | J80: 36.31 | K80: 3.73 | L80: 72.54 | M80: 340.74 | N80: 169.71 | O80: 11.40
B82: 2 день
A83: № 67 Сбор.рец. На прод-ию для обуч. Во всех образ.учреж-Дели 2017 | B83: Винегрет | C83: 60 | D83: 0.842 | E83: 6.024 | F83: 4.374 | G83: 75 | H83: 0.026 | I83: 5.779 | J83: 0.000 | K83: 2.700 | L83: 18.741 | M83: 25.962 | N83: 11.717 | O83: 0.497
A84: № 291 Сбор.рец. На прод-ию для обуч. Во всех образ.учреж-Дели -2015 | B84: Плов из птицы | C84: 50/150 | D84: 14.510 | E84: 14.710 | F84: 28.340 | G84: 316 | H84: 0.210 | I84: 4.900 | J84: 0.100 | K84: 1.200 | L84: 83.070 | M84: 273.000 | N84: 40.450 | O84: 1.900
A85: № 348 Сбор.рец. На прод-ию для обуч. Во всех образ.учреж-Дели 2017 | B85: Компот из кураги (75С) | C85: 200 | D85: 0.780 | E85: 0.046 | F85: 27.630 | G85: 115 | H85: 0.016 | I85: 0.600 | J85: 0.000 | K85: 0.824 | L85: 32.320 | M85: 21.900 | N85: 17.560 | O85: 0.480
A86: Хим.состав и калорийность российских продуктов питания табл 6 стр 134 , 2012 Дели + | B86: Хлеб пшеничный | C86: 30 | D86: 2.280 | E86: 0.240 | F86: 14.760 | G86: 71 | H86: 0.033 | I86: 0 | J86: 0 | K86: 0.330 | L86: 6.000 | M86: 19.500 | N86: 4.200 | O86: 0.330
A87: Хим.состав и калорийность российских продуктов питания,табл 6, стр 144 , 2012 Дели + | B87: Хлеб ржаной | C87: 20 | D87: 1.320 | E87: 0.240 | F87: 7.920 | G87: 40 | H87: 0.034 | I87: 0 | J87: 0 | K87: 0.280 | L87: 5.800 | M87: 30.000 | N87: 9.400 | O87: 0.780
B88: Итого: | C88: 510 | D88: =SUM(D83:D87) -> 19.73 | E88: =SUM(E83:E87) -> 21.26 | F88: 83.02 | G88: 615.96 | H88: 0.32 | I88: 11.28 | J88: 0.10 | K88: 5.33 | L88: 145.93 | M88: 370.36 | N88: 83.33 | O88: 3.99
B90: 3 день
A91: Хим.состав и калорийность российских продуктов питания табл 9 стр 184 , 2012 Дели + | B91: Плоды и ягоды свежие (апельсины) | C91: 100 | D91: 0.900 | E91: 0.200 | F91: 8.100 | G91: 43 | H91: 0.040 | I91: 60.000 | K91: 0.200 | L91: 34.000 | M91: 23.000 | N91: 13.000 | O91: 0.300
A92: № 47 Сбор.рец. На прод-ию для обуч. Во всех образ.учреж-Дели 2017 | B92: Салат из квашеной капусты | C92: 60 | D92: 1.024 | E92: 3.004 | F92: 5.375 | G92: 53 | H92: 0.013 | I92: 10.686 | J92: 0 | K92: 9.192 | L92: 27.206 | M92: 22.291 | N92: 9.367 | O92: 0.390
A93: № 234 Сбор.рец. На прод-ию для обуч. Во всех образ.учреж-Дели -2017 | B93: Биточки рыбные | C93: 90 | D93: 10.98 | E93: 6.98 | F93: 13.21 | G93: 160.20 | H93: 0.05 | I93: 0.29 | J93: 4.68 | K93: 4.52 | L93: 39.13 | M93: 147.33 | N93: 34.43 | O93: 1.30
A94: № 312 Сбор.рец. На прод-ию для обуч. Во всех образ.учреж-Дели -2017 | B94: Пюре картофельное с маслом сливочным | C94: 150/5 | D94: 3.100 | E94: 8.430 | F94: 21 | G94: 170 | H94: 0.140 | I94: 18.161 | J94: 20.000 | K94: 0.240 | L94: 38.180 | M94: 88.000 | N94: 27.750 | O94: 1.020
A95: № 377 Сбор.рец. На прод-ию для обуч. Во всех образ.учреж-Дели 2015 | B95: Чай с сахаром и лимоном | C95: 200/15/7 | D95: 0.130 | E95: 0.020 | F95: 15.200 | G95: 62 | I95: 2.830 | K95: 0.010 | L95: 14.200 | M95: 4.400 | N95: 2.400 | O95: 0.360
A96: Хим.состав и калорийность российских продуктов питания табл 6 стр 134 , 2012 Дели + | B96: Хлеб пшеничный | C96: 35 | D96: 2.660 | E96: 0.280 | F96: 17.220 | G96: 82 | H96: 0.039 | I96: 0 | J96: 0 | K96: 0.385 | L96: 7.000 | M96: 22.750 | N96: 4.900 | O96: 0.385
A97: Хим.состав и калорийность российских продуктов питания,табл 6, стр 144 , 2012 Дели + | B97: Хлеб ржаной | C97: 20 | D97: 1.320 | E97: 0.240 | F97: 7.920 | G97: 40 | H97: 0.034 | I97: 0 | J97: 0 | K97: 0.280 | L97: 5.800 | M97: 30.000 | N97: 9.400 | O97: 0.780
B98: Итого: | C98: 682 | D98: =SUM(D91:D97) -> 20.11 | E98: =SUM(E91:E97) -> 19.16 | F98: 87.53 | G98: 609.73 | H98: 0.32 | I98: 91.96 | J98: 24.68 | K98: 14.83 | L98: 165.52 | M98: 337.77 | N98: 101.25 | O98: 4.53
B105: 4 день
A106: № 243 Сбор.рец. На прод-ию для обуч. Во всех образ.учреж-Дели -2017 | B106: Сосиски отварные | C106: 100 | D106: 10.020 | E106: 11.850 | F106: 0.370 | G106: 192 | H106: 0.180 | I106: 0 | J106: 0 | K106: 0.390 | L106: 34.600 | M106: 159.000 | N106: 20.000 | O106: 1.780
A107: № 203 Сбор.рец. На прод-ию для обуч. Во всех образ.учреж-Дели 2017 | B107: Макаронные изделия отварные с маслом сливочным и зеленым горошком (доп.гарнир) | C107: 150/5/30 | D107: 5.40 | E107: 3.78 | F107: 41.56 | G107: 180.94 | H107: 0.05 | I107: 0.72 | J107: 20.00 | K107: 0.58 | L107: 10.25 | M107: 32.67 | N107: 6.54 | O107: 0.79
A108: № 382 Сбор.рец. На прод-ию для обуч. Во всех образ.учреж-Дели 2017 | B108: Какао с молоком | C108: 200 | D108: 1.08 | E108: 3.544 | F108: 17.578 | G108: 119 | H108: 0.056 | I108: 1.588 | J108: 24.4 | K108: 0 | L108: 152.220 | M108: 124.56 | N108: 21.34 | O108: 0.478
A109: Хим.состав и калорийность российских продуктов питания табл 6 стр 134 , 2012 Дели + | B109: Хлеб пшеничный | C109: 30 | D109: 2.280 | E109: 0.240 | F109: 14.760 | G109: 71 | H109: 0.033 | I109: 0 | J109: 0 | K109: 0.330 | L109: 6.000 | M109: 19.500 | N109: 4.200 | O109: 0.330
A110: Хим.состав и калорийность российских продуктов питания,табл 6, стр 144 , 2012 Дели + | B110: Хлеб ржаной | C110: 20 | D110: 1.320 | E110: 0.240 | F110: 7.920 | G110: 40 | H110: 0.034 | I110: 0 | J110: 0 | K110: 0.280 | L110: 5.800 | M110: 30.000 | N110: 9.400 | O110: 0.780
B111: Итого: | C111: 535 | D111: =SUM(D106:D110) -> 20.10 | E111: 19.65 | F111: 82.19 | G111: 601.64 | H111: 0.35 | I111: 2.31 | J111: 44.40 | K111: 1.58 | L111: 208.87 | M111: 365.73 | N111: 61.48 | O111: 4.16
B112: 5 день
A113: № 52 Сбор.рец. На прод-ию для обуч. Во всех образ.учреж-Дели 2017 | B113: Салат из свеклы с яблоками | C113: 60 | D113: 0.655 | E113: 3.650 | F113: 6.723 | G113: 62 | H113: 0.012 | I113: 3.864 | J113: 0.000 | K113: 6.360 | L113: 17.561 | M113: 19.085 | N113: 10.099 | O113: 0.888
A114: № 290 Сбор.рец. На прод-ию для обуч. Во всех образ.учреж-Дели -2017 | B114: Птица тушеная в сметанно- томатном соусе | C114: 50/50 | D114: 11.940 | E114: 10.120 | F114: 3.510 | G114: 153 | H114: 0.050 | I114: 2.090 | J114: 37.500 | K114: 0.980 | L114: 39.870 | M114: 93.530 | N114: 15.100 | O114: 1.010
A115: № 304 Сбор.рец. На прод-ию для обуч. Во всех образ.учреж-Дели 2017 | B115: Рис отварной | C115: 150 | D115: 3.651 | E115: 5.375 | F115: 36.684 | G115: 210 | H115: 0.026 | I115: 0 | J115: 0.000 | K115: 0.282 | L115: 1.365 | M115: 60.945 | N115: 16.335 | O115: 0.527
A116: № 376 Сбор.рец. На прод-ию для обуч. Во всех образ.учреж-Дели 2017 | B116: Чай с сахаром | C116: 200/15 | D116: 0.07 | E116: 0.02 | F116: 15.00 | G116: 60.00 | I116: 0.03 | L116: 11.10 | M116: 2.80 | N116: 1.40 | O116: 0.28
A117: Хим.состав и калорийность российских продуктов питания табл 6 стр 134 , 2012 Дели + | B117: Хлеб пшеничный | C117: 30 | D117: 2.280 | E117: 0.240 | F117: 14.760 | G117: 71 | H117: 0.033 | I117: 0 | J117: 0 | K117: 0.330 | L117: 6.000 | M117: 19.500 | N117: 4.200 | O117: 0.330
A118: Хим.состав и калорийность российских продуктов питания,табл 6, стр 144 , 2012 Дели + | B118: Хлеб ржаной | C118: 20 | D118: 1.320 | E118: 0.240 | F118: 7.920 | G118: 40 | H118: 0.034 | I118: 0 | J118: 0 | K118: 0.280 | L118: 5.800 | M118: 30.000 | N118: 9.400 | O118: 0.780
B119: Итого: | C119: 575 | D119: =SUM(D113:D118) -> 19.92 | E119: =SUM(E113:E118) -> 19.64 | F119: 84.60 | G119: 595.14 | H119: 0.15 | I119: 5.98 | J119: 37.50 | K119: 8.23 | L119: 81.70 | M119: 225.86 | N119: 56.53 | O119: 3.81
B120: 6 день
A121: Хим.состав и калорийность российских продуктов питания табл 9 стр 184 , 2012 Дели + | B121: Плоды и ягоды свежие (яблоки) | C121: 100 | D121: 0.40 | E121: 0.40 | F121: 9.80 | G121: 47.00 | H121: 0.03 | I121: 10.00 | K121: 0.20 | L121: 16.00 | M121: 11.00 | N121: 9.00 | O121: 2.20
A122: №284 Сбор.рец. На прод-ию для обуч. Во всех образ.учреж-Дели 2017 | B122: Запеканка картофельная с мясом | C122: 50/180 | D122: 12.370 | E122: 15.350 | F122: 31.580 | G122: 352 | H122: 0.307 | I122: 6.146 | J122: 0 | K122: 4.550 | L122: 49.396 | M122: 325.161 | N122: 131.439 | O122: 4.411
A123: № 70 Сбор.рец. На прод-ию для обуч. Во всех образ.учреж-Дели 2017 | B123: Соленые огурцы порционно (доп.гарнир) | C123: 40 | D123: 0.320 | E123: 0.040 | F123: 0.680 | G123: 4 | H123: 0.008 | I123: 1.400 | J123: 0.000 | K123: 0.04 | L123: 9.200 | M123: 9.600 | N123: 5.600 | O123: 0.240
A124: № 379 Сбор.рец. На прод-ию для обуч. Во всех образ.учреж-Дели 2017 | B124: Кофейный напиток с молоком | C124: 200 | D124: 3.166 | E124: 2.678 | F124: 15.946 | G124: 101 | H124: 0.044 | I124: 1.300 | J124: 20.000 | K124: 0.000 | L124: 125.780 | M124: 90.000 | N124: 14.000 | O124: 0.134
A125: Хим.состав и калорийность российских продуктов питания табл 6 стр 134 , 2012 Дели + | B125: Хлеб пшеничный | C125: 30 | D125: 2.280 | E125: 0.240 | F125: 14.760 | G125: 71 | H125: 0.033 | I125: 0 | J125: 0 | K125: 0.330 | L125: 6.000 | M125: 19.500 | N125: 4.200 | O125: 0.330
A126: Хим.состав и калорийность российских продуктов питания,табл 6, стр 144 , 2012 Дели + | B126: Хлеб ржаной | C126: 20 | D126: 1.320 | E126: 0.240 | F126: 7.920 | G126: 40 | H126: 0.034 | I126: 0 | J126: 0 | K126: 0.280 | L126: 5.800 | M126: 30.000 | N126: 9.400 | O126: 0.780
B127: Итого: | C127: 620 | D127: =SUM(D121:D126) -> 19.86 | E127: =SUM(E121:E126) -> 18.95 | F127: 80.69 | G127: 613.61 | H127: 0.46 | I127: 18.85 | J127: 20.00 | K127: 5.40 | L127: 212.18 | M127: 485.26 | N127: 173.64 | O127: 8.10

Sheet Меню старшие 5-11 кл Весна
A2: ПРИМЕРНОЕ ДВУХНЕДЕЛЬНОЕ МЕНЮ ДЛЯ ОБУЧАЮЩИХСЯ В ОБЩЕОБРАЗОВАТЕЛЬНЫХ ОРГАНИЗАЦИЯХ С 5 по 11 КЛАССЫ
A6: № рецептуры | B6: Наименование блюд | C6: Выход,г | D6: Белки, г | E6: Жиры, г | F6: Углеводы, г | G6: Калорийность, ккал | H6: Витамин B1, мг | I6: Витамин С, мг | J6: Витамин А, мг | K6: Витамин Е, мг | L6: Ca, мг | M6: P, мг | N6: Mg, мг | O6: Fe, мг
B7: 1-ая неделя
B8: 1 день
A9: № 279 Сбор.рец. На прод-ию для обуч. Во всех образ.учреж-Дели 2017 | B9: Тефтели из говядины (2 вариант)в сметанно - томатном соусе | C9: 90/30 | D9: 8.40 | E9: 10.20 | F9: 11.00 | G9: 176.96 | H9: 0.06 | I9: 0.01 | J9: 34.29 | K9: 0.54 | L9: 22.32 | M9: 111.49 | N9: 20.34 | O9: 0.84
A10: № 303 Сбор.рец. На прод-ию для обуч. Во всех образ.учреж-Дели 2017 | B10: Каша вязкая гречневая | C10: 180 | D10: 3.58 | E10: 6.01 | F10: 24.63 | G10: 174.60 | H10: 0.14 | I10: 0.00 | J10: 0.00 | K10: 0.41 | L10: 10.13 | M10: 130.64 | N10: 86.44 | O10: 2.91
A11: № 379 Сбор.рец. На прод-ию для обуч. Во всех образ.учреж-Дели 2017 | B11: Кофейный напиток с молоком | C11: 200 | D11: 3.160 | E11: 2.610 | F11: 15.946 | G11: 101 | H11: 0.044 | I11: 1.300 | J11: 20.000 | K11: 0.000 | L11: 125.780 | M11: 90.000 | N11: 14.000 | O11: 0.134
A12: Хим.состав и калорийность российских продуктов питания табл 6 стр 134 , 2012 Дели + | B12: Хлеб пшеничный | C12: 30 | D12: 2.280 | E12: 0.240 | F12: 14.760 | G12: 71 | H12: 0.033 | I12: 0 | J12: 0 | K12: 0.330 | L12: 6.000 | M12: 19.500 | N12: 4.200 | O12: 0.330
A13: Хим.состав и калорийность российских продуктов питания,табл 6, стр 144 , 2012 Дели + | B13: Хлеб ржаной | C13: 20 | D13: 1.32 | E13: 0.24 | F13: 7.92 | G13: 39.60 | H13: 0.03 | I13: 0.00 | J13: 0.00 | K13: 0.28 | L13: 5.80 | M13: 30.00 | N13: 9.40 | O13: 0.78
B14: Итого: | C14: 550 | D14: =SUM(D9:D13) -> 18.74 | E14: =SUM(E9:E13) -> 19.30 | F14: 74.25 | G14: 562.26 | H14: 0.31 | I14: 1.31 | J14: 54.29 | K14: 1.56 | L14: 170.03 | M14: 381.63 | N14: 134.38 | O14: 4.99
B16: 2 день
A17: № 289 Сбор.рец. На прод-ию для обуч. Во всех образ.учреж-Дели 2015 | B17: Рагу из птицы с фасолью консервированной (доп.гарнир) | C17: 50/200/ 30 | D17: 14.79 | E17: 17.96 | F17: 36.79 | G17: 356.30 | H17: 0.29 | I17: 18.72 | J17: 33.60 | K17: 3.29 | L17: 79.04 | M17: 322.06 | N17: 82.50 | O17: 4.16
A18: № 377 Сбор.рец. На прод-ию для обуч. Во всех образ.учреж-Дели 2017 | B18: Чай с сахаром, с лимоном | C18: 200/15/7 | D18: 0.13 | E18: 0.02 | F18: 15.20 | G18: 62.00 | I18: 2.83 | K18: 0.01 | L18: 14.20 | M18: 4.40 | N18: 2.40 | O18: 0.36
A19: Хим.состав и калорийность российских продуктов питания табл 6 стр 134 , 2012 Дели + | B19: Хлеб пшеничный | C19: 30 | D19: 2.280 | E19: 0.240 | F19: 14.760 | G19: 71 | H19: 0.033 | I19: 0 | J19: 0 | K19: 0.330 | L19: 6.000 | M19: 19.500 | N19: 4.200 | O19: 0.330
A20: Хим.состав и калорийность российских продуктов питания,табл 6, стр 144 , 2012 Дели + | B20: Хлеб ржаной | C20: 20 | D20: 1.32 | E20: 0.24 | F20: 7.92 | G20: 39.60 | H20: 0.03 | I20: 0.00 | J20: 0.00 | K20: 0.28 | L20: 5.80 | M20: 30.00 | N20: 9.40 | O20: 0.78
B21: Итого: | C21: 552 | D21: =SUM(D17:D20) -> 18.52 | E21: =SUM(E17:E20) -> 18.46 | F21: 74.67 | G21: 528.40 | H21: 0.36 | I21: 21.55 | J21: 33.60 | K21: 3.91 | L21: 105.04 | M21: 375.96 | N21: 98.50 | O21: 5.63
B23: 3 день
A24: № 268 Сбор.рец. На прод-ию для обуч. Во всех образ.учреж-Дели 2017 | B24: Котлеты из говядины | C24: 100 | D24: 12.42 | E24: 14.18 | F24: 11.98 | G24: 229.33 | H24: 0.06 | I24: 0.00 | J24: 0.00 | K24: 3.44 | L24: 10.42 | M24: 166.76 | N24: 30.60 | O24: 2.68
A25: № 304 Сбор.рец. На прод-ию для обуч. Во всех образ.учреж-Дели 2017 | B25: Рис отварной с кукурузой к/с (доп.гарнир) | C25: 180/30 | D25: 5.30 | E25: 8.30 | F25: 46.43 | G25: 281.43 | H25: 0.06 | I25: 2.79 | J25: 0.00 | K25: 1.19 | L25: 7.24 | M25: 90.47 | N25: 25.46 | O25: 0.83
A26: № 376 Сбор.рец. На прод-ию для обуч. Во всех образ.учреж-Дели 2017 | B26: Чай с сахаром | C26: 200/15 | D26: 0.07 | E26: 0.02 | F26: 15.00 | G26: 60.00 | I26: 0.03 | L26: 11.10 | M26: 2.80 | N26: 1.40 | O26: 0.28
A27: Хим.состав и калорийность российских продуктов питания табл 6 стр 134 , 2012 Дели + | B27: Хлеб пшеничный | C27: 30 | D27: 2.280 | E27: 0.240 | F27: 14.760 | G27: 71 | H27: 0.033 | I27: 0 | J27: 0 | K27: 0.330 | L27: 6.000 | M27: 19.500 | N27: 4.200 | O27: 0.330
A28: Хим.состав и калорийность российских продуктов питания,табл 6, стр 144 , 2012 Дели + | B28: Хлеб ржаной | C28: 20 | D28: 1.32 | E28: 0.24 | F28: 7.92 | G28: 39.60 | H28: 0.03 | I28: 0.00 | J28: 0.00 | K28: 0.28 | L28: 5.80 | M28: 30.00 | N28: 9.40 | O28: 0.78
B29: Итого: | C29: 575 | D29: =SUM(D24:D28) -> 21.39 | E29: =SUM(E24:E28) -> 22.98 | F29: 96.09 | G29: 680.86 | H29: 0.19 | I29: 2.82 | J29: 0.00 | K29: 5.24 | L29: 40.56 | M29: 309.52 | N29: 71.06 | O29: 4.90
B34: 4 день
A36: № 295 Сбор.рец. На прод-ию для обуч. Во всех образ.учреж-Дели 2017 | B36: Котлеты рубленные из бройлер - цыплят | C36: 100 | D36: 14.11 | E36: 16.60 | F36: 15.40 | G36: 277.56 | H36: 0.10 | I36: 1.04 | J36: 51.40 | K36: 2.79 | L36: 68.34 | M36: 106.16 | N36: 23.96 | O36: 1.40
A37: № 312 Сбор.рец. На прод-ию для обуч. Во всех образ.учреж-Дели -2017 | B37: Пюре картофельное с огурцами солеными (доп.гарнир) | C37: 180/30 | D37: 3.92 | E37: 5.79 | F37: 25.04 | G37: 167.70 | H37: 0.17 | I37: 22.84 | J37: 0.00 | K37: 0.25 | L37: 51.27 | M37: 111.11 | N37: 37.50 | O37: 1.39
A38: № 342 Сбор.рец. На прод-ию для обуч. Во всех образ.учреж-Дели 2017 | B38: Компот из свежих яблок (75 С) | C38: 200 | D38: 0.16 | E38: 0.16 | F38: 27.88 | G38: 114.60 | H38: 0.01 | I38: 0.90 | J38: 0.00 | K38: 0.08 | L38: 14.18 | M38: 4.40 | N38: 5.14 | O38: 0.95
A39: Хим.состав и калорийность российских продуктов питания табл 6 стр 134 , 2012 Дели + | B39: Хлеб пшеничный | C39: 30 | D39: 2.280 | E39: 0.240 | F39: 14.760 | G39: 71 | H39: 0.033 | I39: 0 | J39: 0 | K39: 0.330 | L39: 6.000 | M39: 19.500 | N39: 4.200 | O39: 0.330
A40: Хим.состав и калорийность российских продуктов питания,табл 6, стр 144 , 2012 Дели + | B40: Хлеб ржаной | C40: 20 | D40: 1.32 | E40: 0.24 | F40: 7.92 | G40: 39.60 | H40: 0.03 | I40: 0.00 | J40: 0.00 | K40: 0.28 | L40: 5.80 | M40: 30.00 | N40: 9.40 | O40: 0.78
B41: Итого: | C41: 560 | D41: =SUM(D36:D40) -> 21.79 | E41: =SUM(E36:E40) -> 23.03 | F41: 91.00 | G41: 669.96 | H41: 0.35 | I41: 24.79 | J41: 51.40 | K41: 3.73 | L41: 145.59 | M41: 271.17 | N41: 80.20 | O41: 4.85
B43: 5 день
A44: № 243 Сбор.рец. На прод-ию для обуч. Во всех образ.учреж-Дели 2017 | B44: Сосиски отварные | C44: 100 | D44: 10.010 | E44: 11.850 | F44: 0.370 | G44: 192 | H44: 0.180 | I44: 0 | J44: 0 | K44: 0.390 | L44: 34.600 | M44: 159.000 | N44: 20.000 | O44: 1.780
A45: № 203 Сбор.рец. На прод-ию для обуч. Во всех образ.учреж-Дели 2017 | B45: Макаронные изделия отварные с маслом сливочным с зеленым горошком к/с (доп.гарнир) | C45: 180/5/30 | D45: 7.55 | E45: 10.60 | F45: 48.97 | G45: 265.22 | H45: 0.10 | I45: 3.30 | J45: 20.00 | K45: 1.94 | L45: 13.47 | M45: 64.09 | N45: 31.58 | O45: 1.54
A46: № 376 Сбор.рец. На прод-ию для обуч. Во всех образ.учреж-Дели 2017 | B46: Чай с сахаром | C46: 200/15 | D46: 0.07 | E46: 0.02 | F46: 15.00 | G46: 60.00 | I46: 0.03 | L46: 11.10 | M46: 2.80 | N46: 1.40 | O46: 0.28
A47: Хим.состав и калорийность российских продуктов питания табл 6 стр 134 , 2012 Дели + | B47: Хлеб пшеничный | C47: 30 | D47: 2.280 | E47: 0.240 | F47: 14.760 | G47: 71 | H47: 0.033 | I47: 0 | J47: 0 | K47: 0.330 | L47: 6.000 | M47: 19.500 | N47: 4.200 | O47: 0.330
A48: Хим.состав и калорийность российских продуктов питания,табл 6, стр 144 , 2012 Дели + | B48: Хлеб ржаной | C48: 30 | D48: 1.98 | E48: 0.36 | F48: 11.88 | G48: 59.40 | H48: 0.05 | I48: 0.00 | J48: 0.00 | K48: 0.42 | L48: 8.70 | M48: 45.00 | N48: 14.10 | O48: 1.17
B49: Итого: | C49: 590 | D49: =SUM(D44:D48) -> 21.89 | E49: =SUM(E44:E48) -> 23.07 | F49: 90.98 | G49: 647.12 | H49: 0.36 | I49: 3.33 | J49: 20.00 | K49: 3.08 | L49: 73.87 | M49: 290.39 | N49: 71.28 | O49: 5.10
B52: 6 день
A53: Хим.состав и калорийность российских продуктов питания табл 9 стр 184 , 2012 Дели + | B53: Плоды и ягоды свежие (яблоки) | C53: 100 | D53: 0.40 | E53: 0.40 | F53: 9.80 | G53: 47.00 | H53: 0.03 | I53: 10.00 | K53: 0.20 | L53: 16.00 | M53: 11.00 | N53: 9.00 | O53: 2.20
A54: № 15 Сбор.рец. На прод-ию для обуч. Во всех образ.учреж-Дели 2017 | B54: Сыр порционно | C54: 10 | D54: 2.63 | E54: 2.63 | F54: 0.00 | G54: 34.33 | H54: 0.00 | I54: 0.07 | J54: 21.00 | K54: 0.04 | L54: 100.00 | M54: 60.00 | N54: 5.50 | O54: 0.07
A55: № 223 Сбор.рец. На прод-ию для обуч. Во всех образ.учреж-Дели 2017 | B55: Запеканка творожная с молоком сгущенным | C55: 170/30 | D55: 17.62 | E55: 19.240 | F55: 48.056 | G55: 443.80 | H55: 0.124 | I55: 0.742 | J55: 154.700 | K55: 0.986 | L55: 345.034 | M55: 425.054 | N55: 50.286 | O55: 1.454
A56: № 376 Сбор.рец. На прод-ию для обуч. Во всех образ.учреж-Дели 2017 | B56: Чай с сахаром,с курагой | C56: 200/15/7 | D56: 0.58 | E56: 0.02 | F56: 18.57 | G56: 76.24 | I56: 0.31 | K56: 0.39 | L56: 22.76 | M56: 13.44 | N56: 9.03 | O56: 0.50
A57: Хим.состав и калорийность российских продуктов питания табл 6 стр 134 , 2012 Дели + | B57: Хлеб пшеничный | C57: 30 | D57: 2.28 | E57: 0.24 | F57: 14.76 | G57: 70.50 | H57: 0.03 | I57: 0.00 | J57: 0.00 | K57: 0.33 | L57: 6.00 | M57: 19.50 | N57: 4.20 | O57: 0.33
B58: Итого: | C58: 562 | D58: =SUM(D53:D57) -> 23.51 | E58: =SUM(E53:E57) -> 22.53 | F58: 91.19 | G58: 671.87 | H58: 0.19 | I58: 11.12 | J58: 175.70 | K58: 1.95 | L58: 489.79 | M58: 528.99 | N58: 78.02 | O58: 4.55
A69: № рецептуры | B69: Наименование блюд | C69: Выход,г | D69: Белки, г | E69: Жиры, г | F69: Углеводы, г | G69: Калорийность, ккал | H69: Витамин B1, мг | I69: Витамин С, мг | J69: Витамин А, мг | K69: Витамин Е, мг | L69: Ca, мг | M69: P, мг | N69: Mg, мг | O69: Fe, мг
B70: 2-ая неделя
B71: 1 день
A72: № 280 Сбор.рец. На прод-ию для обуч. Во всех образ.учреж-Дели -2017 | B72: Фрикадельки в сметанно-томатном соусе | C72: 55/50 | D72: 7.580 | E72: 12.410 | F72: 10.310 | G72: 180 | H72: 0.040 | I72: 0.270 | J72: 16.310 | K72: 2.67 | L72: 24.450 | M72: 79.590 | N72: 14.190 | O72: 5.290
A73: № 171 Сбор.рец. На прод-ию для обуч. Во всех образ.учреж-Дели 2017 | B73: Каша гречневая рассыпчатая с маслом сливочным | C73: 180/5 | D73: 10.56 | E73: 9.39 | F73: 47.74 | G73: 289.80 | H73: 0.25 | I73: 0.00 | J73: 20.00 | K73: 0.52 | L73: 29.99 | M73: 250.32 | N73: 168.62 | O73: 5.66
A74: № 376 Сбор.рец. На прод-ию для обуч. Во всех образ.учреж-Дели 2017 | B74: Чай с сахаром | C74: 200/15 | D74: 0.07 | E74: 0.02 | F74: 15.000 | G74: 60 | I74: 0.03 | L74: 11.100 | M74: 2.8 | N74: 1.4 | O74: 0.280
A75: Хим.состав и калорийность российских продуктов питания табл 6 стр 134 , 2012 Дели + | B75: Хлеб пшеничный | C75: 30 | D75: 2.280 | E75: 0.240 | F75: 14.760 | G75: 71 | H75: 0.033 | I75: 0 | J75: 0 | K75: 0.330 | L75: 6.000 | M75: 19.500 | N75: 4.200 | O75: 0.330
A76: Хим.состав и калорийность российских продуктов питания,табл 6, стр 144 , 2012 Дели + | B76: Хлеб ржаной | C76: 25 | D76: 1.650 | E76: 0.300 | F76: 9.900 | G76: 50 | H76: 0.043 | I76: 0 | J76: 0 | K76: 0.350 | L76: 7.250 | M76: 37.500 | N76: 11.750 | O76: 0.975
B77: Итого: | C77: 560 | D77: =SUM(D72:D76) -> 22.14 | E77: =SUM(E72:E76) -> 22.36 | F77: 97.71 | G77: 649.80 | H77: 0.37 | I77: 0.30 | J77: 36.31 | K77: 3.87 | L77: 78.79 | M77: 389.71 | N77: 200.16 | O77: 12.54
B79: 2 день
A80: № 67 Сбор.рец. На прод-ию для обуч. Во всех образ.учреж-Дели 2017 | B80: Винегрет | C80: 100 | D80: 1.40 | E80: 10.04 | F80: 7.29 | G80: 125.10 | H80: 0.04 | I80: 9.63 | J80: 0.00 | K80: 4.50 | L80: 31.24 | M80: 43.27 | N80: 19.53 | O80: 0.83
A81: № 291 Сбор.рец. На прод-ию для обуч. Во всех образ.учреж-Дели -2015 | B81: Плов из птицы | C81: 50/180 | D81: 16.47 | E81: 11.62 | F81: 41.68 | G81: 344.66 | H81: 0.20 | I81: 9.80 | J81: 30.00 | K81: 0.67 | L81: 34.64 | M81: 212.50 | N81: 70.90 | O81: 1.90
A82: № 348 Сбор.рец. На прод-ию для обуч. Во всех образ.учреж-Дели 2017 | B82: Компот из кураги (75С) | C82: 200 | D82: 0.78 | E82: 0.05 | F82: 27.63 | G82: 114.80 | H82: 0.02 | I82: 0.60 | J82: 0.00 | K82: 0.82 | L82: 32.32 | M82: 21.90 | N82: 17.56 | O82: 0.48
A83: Хим.состав и калорийность российских продуктов питания табл 6 стр 134 , 2012 Дели + | B83: Хлеб пшеничный | C83: 30 | D83: 2.28 | E83: 0.24 | F83: 14.76 | G83: 70.50 | H83: 0.03 | I83: 0.00 | J83: 0.00 | K83: 0.33 | L83: 6.00 | M83: 19.50 | N83: 4.20 | O83: 0.33
A84: Хим.состав и калорийность российских продуктов питания,табл 6, стр 144 , 2012 Дели + | B84: Хлеб ржаной | C84: 20 | D84: 1.32 | E84: 0.24 | F84: 7.92 | G84: 39.60 | H84: 0.03 | I84: 0.00 | J84: 0.00 | K84: 0.28 | L84: 5.80 | M84: 30.00 | N84: 9.40 | O84: 0.78
B85: Итого: | C85: 580 | D85: =SUM(D80:D84) -> 22.25 | E85: =SUM(E80:E84) -> 22.19 | F85: 99.28 | G85: 694.66 | H85: 0.33 | I85: 20.03 | J85: 30.00 | K85: 6.60 | L85: 110.00 | M85: 327.17 | N85: 121.59 | O85: 4.32
B87: 3 день
A88: № 234 Сбор.рец. На прод-ию для обуч. Во всех образ.учреж-Дели -2017 | B88: Биточки рыбные | C88: 100 | D88: 12.12 | E88: 7.76 | F88: 14.68 | G88: 178.00 | H88: 0.06 | I88: 0.32 | J88: 5.20 | K88: 5.02 | L88: 43.48 | M88: 163.70 | N88: 38.26 | O88: 1.44
A89: № 312 Сбор.рец. На прод-ию для обуч. Во всех образ.учреж-Дели -2017 | B89: Пюре картофельное с маслом сливочным с капустой квашенной (доп.гарнир) | C89: 180/3/30 | D89: 3.010 | E89: 9.440 | F89: 27.25 | G89: 211.59 | H89: 0.174 | I89: 27.136 | J89: 12.000 | K89: 4.850 | L89: 58.700 | M89: 115.860 | N89: 37.983 | O89: 1.370
A90: № 377 Сбор.рец. На прод-ию для обуч. Во всех образ.учреж-Дели 2015 | B90: Чай с сахаром и лимоном | C90: 200/15/7 | D90: 0.130 | E90: 0.020 | F90: 15.200 | G90: 62 | I90: 2.830 | K90: 0.010 | L90: 14.200 | M90: 4.400 | N90: 2.400 | O90: 0.360
A91: Хим.состав и калорийность российских продуктов питания табл 6 стр 134 , 2012 Дели + | B91: Хлеб пшеничный | C91: 30 | D91: 2.280 | E91: 0.240 | F91: 14.760 | G91: 71 | H91: 0.033 | I91: 0 | J91: 0 | K91: 0.330 | L91: 6.000 | M91: 19.500 | N91: 4.200 | O91: 0.330
A92: Хим.состав и калорийность российских продуктов питания,табл 6, стр 144 , 2012 Дели + | B92: Хлеб ржаной | C92: 20 | D92: 1.320 | E92: 0.240 | F92: 7.920 | G92: 40 | H92: 0.034 | I92: 0 | J92: 0 | K92: 0.280 | L92: 5.800 | M92: 30.000 | N92: 9.400 | O92: 0.780
B93: Итого: | C93: 585 | D93: =SUM(D88:D92) -> 18.86 | E93: 17.70 | F93: 79.81 | G93: 561.69 | H93: 0.30 | I93: 30.29 | J93: 17.20 | K93: 10.49 | L93: 128.18 | M93: 333.46 | N93: 92.24 | O93: 4.28
B100: 4 день
A101: № 243 Сбор.рец. На прод-ию для обуч. Во всех образ.учреж-Дели -2017 | B101: Сосиски отварные | C101: 100 | D101: 10.020 | E101: 11.850 | F101: 0.380 | G101: 192 | H101: 0.180 | I101: 0 | J101: 0 | K101: 0.390 | L101: 34.600 | M101: 159.000 | N101: 20.000 | O101: 1.780
A102: № 203 Сбор.рец. На прод-ию для обуч. Во всех образ.учреж-Дели 2017 | B102: Макаронные изделия отварные и зеленым горошком (доп.гарнир) | C102: 180/30 | D102: 7.51 | E102: 6.98 | F102: 49.91 | G102: 232.22 | H102: 0.10 | I102: 3.30 | K102: 1.88 | L102: 12.27 | M102: 62.59 | N102: 31.58 | O102: 1.43
A103: № 382 Сбор.рец. На прод-ию для обуч. Во всех образ.учреж-Дели 2017 | B103: Какао с молоком | C103: 200 | D103: 1.08 | E103: 3.544 | F103: 17.600 | G103: 119 | H103: 0.056 | I103: 1.588 | J103: 24.4 | K103: 0 | L103: 152.220 | M103: 124.56 | N103: 21.34 | O103: 0.478
A104: Хим.состав и калорийность российских продуктов питания табл 6 стр 134 , 2012 Дели + | B104: Хлеб пшеничный | C104: 30 | D104: 2.280 | E104: 0.240 | F104: 14.860 | G104: 71 | H104: 0.033 | I104: 0 | J104: 0 | K104: 0.330 | L104: 6.000 | M104: 19.500 | N104: 4.200 | O104: 0.330
A105: Хим.состав и калорийность российских продуктов питания,табл 6, стр 144 , 2012 Дели + | B105: Хлеб ржаной | C105: 20 | D105: 1.320 | E105: 0.240 | F105: 7.920 | G105: 40 | H105: 0.034 | I105: 0 | J105: 0 | K105: 0.280 | L105: 5.800 | M105: 30.000 | N105: 9.400 | O105: 0.780
B106: Итого: | C106: 565 | D106: =SUM(D101:D105) -> 22.21 | E106: =SUM(E101:E105) -> 22.85 | F106: 90.67 | G106: 652.92 | H106: 0.40 | I106: 4.89 | J106: 24.40 | K106: 2.88 | L106: 210.89 | M106: 395.65 | N106: 86.52 | O106: 4.80
B107: 5 день
A108: № 52 Сбор.рец. На прод-ию для обуч. Во всех образ.учреж-Дели 2017 | B108: Салат из свеклы с яблоками | C108: 100 | D108: 1.49 | E108: 6.08 | F108: 11.21 | G108: 103.90 | H108: 0.02 | I108: 6.44 | J108: 0.00 | K108: 10.60 | L108: 29.27 | M108: 31.81 | N108: 16.83 | O108: 1.48
A109: № 290 Сбор.рец. На прод-ию для обуч. Во всех образ.учреж-Дели -2017 | B109: Птица тушеная в сметанно- томатном соусе | C109: 50/50 | D109: 11.940 | E109: 10.120 | F109: 3.510 | G109: 153 | H109: 0.050 | I109: 2.090 | J109: 37.500 | K109: 0.980 | L109: 39.870 | M109: 93.530 | N109: 15.100 | O109: 1.010
A110: № 304 Сбор.рец. На прод-ию для обуч. Во всех образ.учреж-Дели 2017 | B110: Рис отварной | C110: 180 | D110: 4.381 | E110: 6.449 | F110: 44.021 | G110: 252 | H110: 0.031 | I110: 0 | J110: 0.000 | K110: 0.338 | L110: 1.638 | M110: 73.134 | N110: 19.602 | O110: 0.632
A111: № 376 Сбор.рец. На прод-ию для обуч. Во всех образ.учреж-Дели 2017 | B111: Чай с сахаром | C111: 200/15 | D111: 0.07 | E111: 0.02 | F111: 15.00 | G111: 60.00 | I111: 0.03 | L111: 11.10 | M111: 2.80 | N111: 1.40 | O111: 0.28
A112: Хим.состав и калорийность российских продуктов питания табл 6 стр 134 , 2012 Дели + | B112: Хлеб пшеничный | C112: 30 | D112: 2.280 | E112: 0.240 | F112: 14.860 | G112: 71 | H112: 0.033 | I112: 0 | J112: 0 | K112: 0.330 | L112: 6.000 | M112: 19.500 | N112: 4.200 | O112: 0.330
A113: Хим.состав и калорийность российских продуктов питания,табл 6, стр 144 , 2012 Дели + | B113: Хлеб ржаной | C113: 20 | D113: 1.320 | E113: 0.240 | F113: 7.920 | G113: 40 | H113: 0.034 | I113: 0 | J113: 0 | K113: 0.280 | L113: 5.800 | M113: 30.000 | N113: 9.400 | O113: 0.780
B114: Итого: | C114: 645 | D114: =SUM(D108:D113) -> 21.48 | E114: =SUM(E108:E113) -> 23.15 | F114: 96.52 | G114: 678.64 | H114: 0.17 | I114: 8.56 | J114: 37.50 | K114: 12.53 | L114: 93.68 | M114: 250.77 | N114: 66.53 | O114: 4.51
B115: 6 день
A116: №284 Сбор.рец. На прод-ию для обуч. Во всех образ.учреж-Дели 2017 | B116: Запеканка картофельная с мясом | C116: 50/200 (250) | D116: 12.980 | E116: 18.990 | F116: 44.305 | G116: 392.21 | H116: 0.326 | I116: 8.567 | J116: 0 | K116: 4.574 | L116: 54.326 | M116: 336.707 | N116: 135.139 | O116: 4.546
A117: № 70 Сбор.рец. На прод-ию для обуч. Во всех образ.учреж-Дели 2017 | B117: Соленые огурцы порционно (доп.гарнир) | C117: 40 | D117: 0.320 | E117: 0.040 | F117: 0.680 | G117: 4 | H117: 0.008 | I117: 1.400 | J117: 0.000 | K117: 0.04 | L117: 9.200 | M117: 9.600 | N117: 5.600 | O117: 0.240
A118: № 379 Сбор.рец. На прод-ию для обуч. Во всех образ.учреж-Дели 2017 | B118: Кофейный напиток с молоком | C118: 200 | D118: 3.166 | E118: 2.678 | F118: 15.946 | G118: 101 | H118: 0.044 | I118: 1.300 | J118: 20.000 | K118: 0.000 | L118: 125.780 | M118: 90.000 | N118: 14.000 | O118: 0.134
A119: Хим.состав и калорийность российских продуктов питания табл 6 стр 134 , 2012 Дели + | B119: Хлеб пшеничный | C119: 30 | D119: 2.280 | E119: 0.240 | F119: 14.760 | G119: 71 | H119: 0.033 | I119: 0 | J119: 0 | K119: 0.330 | L119: 6.000 | M119: 19.500 | N119: 4.200 | O119: 0.330
A120: Хим.состав и калорийность российских продуктов питания,табл 6, стр 144 , 2012 Дели + | B120: Хлеб ржаной | C120: 40 | D120: 2.640 | E120: 0.480 | F120: 15.840 | G120: 79 | H120: 0.068 | I120: 0 | J120: 0 | K120: 0.560 | L120: 11.600 | M120: 60.000 | N120: 18.800 | O120: 1.560
B121: Итого: | C121: 550 | D121: =SUM(D116:D120) -> 21.39 | E121: =SUM(E116:E120) -> 22.43 | F121: 91.53 | G121: 646.51 | H121: 0.48 | I121: 11.27 | J121: 20.00 | K121: 5.50 | L121: 206.91 | M121: 515.81 | N121: 177.74 | O121: 6.81

Sheet Меню сокр Весна
A1: ПРИМЕРНОЕ ДВУХНЕДЕЛЬНОЕ МЕНЮ ДЛЯ ОБУЧАЮЩИХСЯ В ОБЩЕОБРАЗОВАТЕЛЬНЫХ ОРГАНИЗАЦИЯХ (сезон весенний)
A3: ГОРЯЧИЙ ЗАВТРАК
A4: 1-ая неделя
A5: 1 день | D5: 2 день | G5: 3 день | J5: 4 день | M5: 5 день | P5: 6 день
A6: Наименование блюд | B6: Выход,г | D6: Наименование блюд | E6: Выход,г | G6: Наименование блюд | H6: Выход,г | J6: Наименование блюд | K6: Выход,г | M6: Наименование блюд | N6: Выход,г | P6: Наименование блюд | Q6: Выход,г
B7: 7-11 | C7: 12 -18 | E7: 7-11 | F7: 12 -18 | H7: 7-11 | I7: 12 -18 | K7: 7-11 | L7: 12 -18 | N7: 7-11 | O7: 12 -18 | Q7: 7-11 | R7: 12 -18
P8: Плоды и ягоды свежие (яблоки) | Q8: 100 | R8: 100
A9: Плоды и ягоды свежие (яблоки) | B9: 100 | D9: Салат из фасоли и кукурузы к/с и огурцов соленых | E9: 60 | M9: Салат из квашеной капусты | N9: 60 | P9: Сыр порционно | Q9: 10 | R9: 10
D10: Фасоль консервированная (доп.гарнир) | F10: 30 | M10: Зеленый горошек (доп.гарнир) | O10: 30
A11: Тефтели из говядины (2 вариант) в сметанно-томатном соусе | B11: 90/30 | C11: 90/30 | D11: Рагу из птицы | E11: 50/150 | F11: 50/200 | G11: Котлеты из говядины | H11: 90 | I11: 100 | J11: Котлеты рубленые из бройлер - цыплят | K11: 90 | L11: 100 | M11: Сосиски отварные | N11: 100 | O11: 100 | P11: Запеканка творожная с молоком сгущенным | Q11: 130/20 | R11: 170/30
A12: Каша гречневая (вязкая) | B12: 150 | C12: 180 | G12: Рис отварной с кукурузой к/с (доп.гарнир) | H12: 150/30 | I12: 180/30 | J12: Пюре картофельное с солеными огурцами (доп.гарнир) | K12: 150/30 | L12: 180/30 | M12: Макаронные изделия | N12: 150 | O12: 180/5
A13: Кофейный напиток с молоком | B13: 200 | C13: 200 | D13: Чай с сахаром,с лимоном | E13: 200/15/7 | F13: 200/15/7 | G13: Чай с сахаром | H13: 200/15 | I13: 200/15 | J13: Компот из свежих яблок(75С) | K13: 200 | L13: 200 | M13: Чай с сахаром | N13: 200/15 | O13: 200/15 | P13: Чай с сахаром,с курагой | Q13: 200/15/7 | R13: 200/15/7
A14: Хлеб пшеничный | B14: 30 | C14: 30 | D14: Хлеб пшеничный | E14: 30 | F14: 30 | G14: Хлеб пшеничный | H14: 30 | I14: 30 | J14: Хлеб пшеничный | K14: 30 | L14: 30 | M14: Хлеб пшеничный | N14: 30 | O14: 30 | P14: Хлеб пшеничный | Q14: 30 | R14: 30
A15: Хлеб ржаной | B15: 20 | C15: 20 | D15: Хлеб ржаной | E15: 20 | F15: 20 | G15: Хлеб ржаной | H15: 20 | I15: 20 | J15: Хлеб ржаной | K15: 20 | L15: 20 | M15: Хлеб ржаной | N15: 20 | O15: 30
A16: Итого: | B16: 620 | C16: 550 | D16: Итого: | E16: 532 | F16: 552 | G16: Итого: | H16: 535 | I16: 575 | J16: Итого: | K16: 520 | L16: 560 | M16: Итого: | N16: 575 | O16: 590 | P16: Итого: | Q16: 512 | R16: 562
A18: Белки,г | B18: 20.150 | C18: 18.740 | E18: 20.080 | F18: 18.520 | H18: 19.360 | I18: 21.390 | K18: 19.760 | L18: 21.790 | N18: 20.210 | O18: 21.890 | Q18: 20.090 | R18: 23.510
A19: Жиры,г | B19: 18.770 | C19: 19.300 | E19: 20.190 | F19: 18.460 | H19: 20.480 | I19: 22.980 | K19: 20.410 | L19: 23.030 | N19: 19.870 | O19: 23.070 | Q19: 20.350 | R19: 22.530
A20: Углеводы,г | B20: 79.950 | C20: 74.250 | E20: 83.990 | F20: 74.670 | H20: 87.550 | I20: 96.090 | K20: 85.310 | L20: 91.000 | N20: 79.880 | O20: 90.980 | Q20: 83.130 | R20: 91.190
A21: ЭЦ,ккал | B21: 580.160 | C21: 562.260 | E21: 615.700 | F21: 528.400 | H21: 615.990 | I21: 680.860 | K21: 614.750 | L21: 669.960 | N21: 583.230 | O21: 647.120 | Q21: 616.170 | R21: 671.870
A25: 2-ая неделя
A26: 1 день | D26: 2 день | G26: 3 день | J26: 4 день | M26: 5 день | P26: 6 день
A27: Наименование блюд | B27: Выход,г | D27: Наименование блюд | E27: Выход,г | G27: Наименование блюд | H27: Выход,г | J27: Наименование блюд | K27: Выход,г | M27: Наименование блюд | N27: Выход,г | P27: Наименование блюд | Q27: Выход,г
B28: 7-11 | C28: 12 -18 | E28: 7-11 | F28: 12 -18 | H28: 7-11 | I28: 12 -18 | K28: 7-11 | L28: 12 -18 | N28: 7-11 | O28: 12 -18 | Q28: 7-11 | R28: 12 -18
G29: Плоды и ягоды свежие (апельсины) | H29: 100
D30: Винегрет | E30: 60 | F30: 100 | G30: Салат из квашенной капусты | H30: 60 | I30: 30 | M30: Салат из отварной свеклы с яблоками | N30: 60 | O30: 100 | P30: Плоды и ягоды свежие (яблоки) | Q30: 100
A31: Фрикадельки в сметанно- томатном соусе | B31: 55/50 | C31: 55/50 | D31: Плов из птицы | E31: 50/150 | F31: 50/180 | G31: Биточки рыбные | H31: 90 | I31: 100 | J31: Сосиски отварные | K31: 100 | L31: 100 | M31: Птица тушеная в сметанно-томатном в соусе | N31: 50/50 | O31: 50/50 | P31: Запеканка картофельная с мясом | Q31: 50/180 (230) | R31: 50/200 (250)
A32: Каша гречневая рассыпчатая с маслом сливочным | B32: 150/5 | C32: 180/5 | G32: Пюре картофельное с маслом сливочным | H32: 150/5 | I32: 180/3 | J32: Макаронные изделия с маслом сливочным и зеленым горошком (доп.гарнир) | K32: 150/5/30 | L32: 180/30 | M32: Рис отварной | N32: 150 | O32: 180 | P32: Огурцы соленые порционные (доп.гарнир) | Q32: 40 | R32: 40
A33: Чай с сахаром | B33: 200/15 | C33: 200/15 | D33: Компот из кураги (75С) | E33: 200 | F33: 200 | G33: Чай с сахаром и лимоном | H33: 200/15/7 | I33: 200/15/7 | J33: Какао с молоком | K33: 200 | L33: 200 | M33: Чай с сахаром | N33: 200/15 | O33: 200/15 | P33: Кофейный напиток с молоком | Q33: 200 | R33: 200
A34: Хлеб пшеничный | B34: 30 | C34: 30 | D34: Хлеб пшеничный | E34: 30 | F34: 30 | G34: Хлеб пшеничный | H34: 35 | I34: 30 | J34: Хлеб пшеничный | K34: 30 | L34: 30 | M34: Хлеб пшеничный | N34: 30 | O34: 30 | P34: Хлеб пшеничный | Q34: 30 | R34: 30
A35: Хлеб ржаной | B35: 20 | C35: 25 | D35: Хлеб ржаной | E35: 20 | F35: 20 | G35: Хлеб ржаной | H35: 20 | I35: 20 | J35: Хлеб ржаной | K35: 20 | L35: 20 | M35: Хлеб ржаной | N35: 20 | O35: 20 | P35: Хлеб ржаной | Q35: 20 | R35: 40
A36: Итого: | B36: 525 | C36: 560 | D36: Итого: | E36: 510 | F36: 580 | G36: Итого: | H36: 682 | I36: 585 | J36: Итого: | K36: 535 | L36: 565 | M36: Итого: | N36: 575 | O36: 645 | P36: Итого: | Q36: 620 | R36: 550
A38: Белки,г | B38: 20.060 | C38: 22.140 | E38: 19.730 | F38: 22.250 | H38: 20.110 | I38: 18.860 | K38: 20.100 | L38: 22.210 | N38: 19.920 | O38: 21.480 | Q38: 19.860 | R38: 21.390
A39: Жиры,г | B39: 18.830 | C39: 22.360 | E39: 21.260 | F39: 22.190 | H39: 19.160 | I39: 17.700 | K39: 19.650 | L39: 22.850 | N39: 19.640 | O39: 23.150 | Q39: 18.950 | R39: 22.430
A40: Углеводы,г | B40: 87.770 | C40: 97.710 | E40: 83.020 | F40: 99.280 | H40: 87.530 | I40: 79.810 | K40: 82.190 | L40: 90.670 | N40: 84.600 | O40: 96.520 | Q40: 80.690 | R40: 91.530
A41: ЭЦ,ккал | B41: 597.100 | C41: 649.800 | E41: 615.960 | F41: 694.660 | H41: 609.730 | I41: 561.690 | K41: 601.640 | L41: 652.920 | N41: 595.140 | O41: 678.640 | Q41: 613.610 | R41: 646.510
